bitfinex/quotes_SOLUSD_20241107
["timestamp","ask_amount","ask_price","bid_price","bid_amount"]
[1730989354786,24.48488377,187.81,187.78,0.1]
[1730989355735,24.48488377,187.82,187.78,0.1]
[1730989356602,24.48488377,187.82,187.77,0.1]
[1730989356787,24.48488377,187.82,187.78,0.1]
[1730989357591,24.48488377,187.82,187.77,0.1]
[1730989358216,24.48488377,187.82,187.78,0.1]
[1730989358594,24.48488377,187.82,187.79,0.1]
[1730989358781,24.48488377,187.86,187.81,0.1]
[1730989358988,24.48488377,187.84,187.8,0.1]
[1730989359303,24.48488377,187.84,187.79,0.1]
[1730989359304,24.48488377,187.84,187.79,0.2]
[1730989359512,24.48488377,187.84,187.81,0.1]
[1730989359718,23.776884,187.9,187.81,0.1]
[1730989359719,24.48488377,187.83,187.81,0.1]
[1730989360018,24.48488377,187.83,187.79,0.1]
[1730989360213,24.48488377,187.82,187.77,0.1]
[1730989360598,24.48488377,187.82,187.78,0.1]
[1730989360800,24.48488377,187.83,187.78,0.1]
[1730989361207,24.48488377,187.82,187.77,0.1]
[1730989361499,24.48488377,187.81,187.77,0.1]
[1730989361805,0.12549,187.89,187.77,0.1]
[1730989361806,24.48488377,187.82,187.77,0.1]
[1730989362124,24.48488377,187.83,187.79,0.1]
[1730989362303,24.48488377,187.84,187.79,0.2]
[1730989362912,24.48488377,187.84,187.79,0.1]
[1730989363313,15.31087834,187.82,187.79,0.1]
[1730989363619,15.31087834,187.83,187.79,0.1]
[1730989364211,5.3199,187.97,187.83,0.1]
[1730989364526,15.31087834,187.88,187.83,0.1]
[1730989364726,15.31087834,187.87,187.83,0.1]
[1730989365102,15.31087834,187.87,187.84,0.1]
[1730989365805,15.31087834,187.88,187.84,0.2]
[1730989367004,15.31087834,187.88,187.85,0.1]
[1730989368029,0.12549,187.95,187.85,0.1]
[1730989368200,15.31087834,187.88,187.85,0.1]
[1730989368601,15.31087834,187.89,187.85,0.1]
[1730989368807,10.4311375,187.99,187.89,0.1]
[1730989369006,15.31087834,187.92,187.89,0.1]
[1730989369224,15.31087834,187.91,187.89,0.1]
[1730989369424,15.31087834,187.9,187.89,0.1]
[1730989369721,15.31087834,187.91,187.89,0.1]
[1730989371528,15.31087834,187.9,187.89,0.1]
[1730989372519,15.31087834,187.9,187.86,0.1]
[1730989372706,15.31087834,187.87,187.86,0.1]
[1730989372905,15.31087834,187.88,187.86,0.1]
[1730989373129,15.31087834,187.87,187.83,0.1]
[1730989373422,15.31087834,187.87,187.82,0.1]
[1730989373423,15.31087834,187.84,187.82,0.1]
[1730989373924,15.31087834,187.85,187.82,0.1]
[1730989374131,15.31087834,187.86,187.83,0.1]
[1730989374306,15.31087834,187.87,187.83,0.1]
[1730989374501,15.31087834,187.87,187.84,0.1]
[1730989375230,15.31087834,187.86,187.84,0.1]
[1730989375407,15.31087834,187.87,187.84,0.1]
[1730989376424,15.31087834,187.87,187.84,0.2]
[1730989376719,15.31087834,187.87,187.84,0.1]
[1730989377226,15.31087834,187.88,187.84,0.1]
[1730989377400,15.31087834,187.87,187.84,0.1]
[1730989378021,15.31087834,187.86,187.84,0.1]
[1730989378916,15.31087834,187.87,187.84,0.1]
[1730989379322,15.31087834,187.86,187.84,0.1]
[1730989379626,15.31087834,187.87,187.84,0.1]
[1730989379827,15.31087834,187.86,187.84,0.1]
[1730989380030,15.31087834,187.85,187.8,0.2]
[1730989380221,15.31087834,187.84,187.81,0.1]
[1730989380422,15.31087834,187.85,187.82,0.1]
[1730989380628,13.3016,187.95,187.82,0.1]
[1730989380809,15.31087834,187.87,187.83,0.2]
[1730989381227,15.31087834,187.87,187.83,0.1]
[1730989381409,15.31087834,187.87,187.84,0.1]
[1730989382817,15.31087834,187.87,187.83,0.1]
[1730989383039,15.31087834,187.86,187.83,0.1]
[1730989383331,15.31087834,187.86,187.84,0.1]
[1730989383710,15.31087834,187.88,187.84,0.1]
[1730989383925,15.31087834,187.88,187.84,0.2]
[1730989384127,25.64289202,187.87,187.84,0.2]
[1730989384426,10.33201368,187.86,187.84,0.2]
[1730989384634,10.33201368,187.85,187.84,0.2]
[1730989385629,10.33201368,187.85,187.84,0.1]
[1730989385834,10.33201368,187.85,187.84,0.2]
[1730989386116,10.33201368,187.85,187.84,0.1]
[1730989386430,19.28472975,187.85,187.83,0.1]
[1730989386740,15.31087834,187.85,187.82,0.1]
[1730989387035,15.31087834,187.85,187.83,0.1]
[1730989387216,15.31087834,187.87,187.84,0.2]
[1730989387534,3.97538618,187.86,187.84,0.2]
[1730989387738,5.3215,187.92,187.84,0.2]
[1730989387739,3.97538618,187.85,187.84,0.2]
[1730989387918,15.31087834,187.9,187.86,0.1]
[1730989388118,19.28610003,187.89,187.86,0.1]
[1730989388321,15.31087834,187.88,187.86,0.1]
[1730989388521,15.31087834,187.89,187.86,0.2]
[1730989389641,15.31087834,187.9,187.86,0.2]
[1730989390142,15.31087834,187.9,187.86,0.1]
[1730989390731,15.31087834,187.9,187.86,0.2]
[1730989391037,15.31087834,187.91,187.88,0.1]
[1730989391424,15.31087834,187.9,187.88,0.1]
[1730989392324,14.81087834,187.9,187.88,0.1]
[1730989392517,15.31087834,187.91,187.88,0.1]
[1730989392929,15.31087834,187.9,187.88,0.1]
[1730989393232,15.31087834,187.89,187.87,0.1]
[1730989393441,15.31087834,187.88,187.87,0.1]
[1730989393830,15.31087834,187.89,187.87,0.2]
[1730989394649,15.31087834,187.89,187.87,0.1]
[1730989395032,15.31087834,187.88,187.86,0.1]
[1730989395356,15.31087834,187.88,187.87,0.1]
[1730989395541,15.31087834,187.89,187.87,0.1]
[1730989395730,15.31087834,187.9,187.87,0.1]
[1730989396346,15.31087834,187.89,187.87,0.2]
[1730989396554,15.31087834,187.89,187.87,0.1]
[1730989397427,15.31087834,187.89,187.87,0.2]
[1730989397628,15.31087834,187.9,187.87,0.2]
[1730989399140,15.31087834,187.9,187.87,0.1]
[1730989399328,15.31087834,187.89,187.87,0.2]
[1730989399844,15.31087834,187.89,187.86,0.1]
[1730989400147,15.31087834,187.89,187.87,0.1]
[1730989400859,15.31087834,187.89,187.87,0.2]
[1730989401025,15.31087834,187.89,187.87,0.1]
[1730989401343,29.222874,187.96,187.87,0.2]
[1730989401648,15.31087834,187.9,187.87,0.2]
[1730989402028,15.31087834,187.89,187.86,0.1]
[1730989402226,15.31087834,187.89,187.85,0.2]
[1730989402423,15.31087834,187.88,187.86,0.1]
[1730989403029,15.31087834,187.89,187.86,0.1]
[1730989403354,15.31087834,187.89,187.86,0.2]
[1730989403922,15.31087834,187.88,187.85,0.2]
[1730989405154,15.31087834,187.88,187.85,0.1]
[1730989405329,9.79231295,187.88,187.85,0.2]
[1730989405647,9.79231295,187.86,187.84,0.1]
[1730989405834,9.79231295,187.85,187.84,0.1]
[1730989406232,9.79231295,187.86,187.84,0.1]
[1730989408254,9.79231295,187.85,187.81,0.1]
[1730989408441,9.79231295,187.84,187.83,0.1]
[1730989409033,9.79231295,187.84,187.81,0.2]
[1730989409252,20.5979,187.88,187.77,0.1]
[1730989409439,9.79231295,187.81,187.77,0.1]
[1730989409746,9.79231295,187.83,187.78,0.1]
[1730989410059,9.79231295,187.83,187.79,0.2]
[1730989410247,9.79231295,187.83,187.8,0.1]
[1730989410768,9.79231295,187.85,187.81,0.2]
[1730989411144,9.79231295,187.84,187.81,0.2]
[1730989411352,15.2753,187.88,187.81,0.1]
[1730989411648,9.79231295,187.83,187.79,0.1]
[1730989411829,9.79231295,187.82,187.79,0.1]
[1730989412255,9.79231295,187.82,187.78,0.1]
[1730989412472,9.79231295,187.82,187.79,0.1]
[1730989412761,9.79231295,187.83,187.79,0.2]
[1730989413345,9.79231295,187.83,187.81,0.1]
[1730989413855,9.79231295,187.84,187.81,0.1]
[1730989414151,9.79231295,187.85,187.81,0.2]
[1730989414354,9.79231295,187.84,187.81,0.2]
[1730989414547,9.79231295,187.83,187.81,0.1]
[1730989414855,9.79231295,187.83,187.8,0.1]
[1730989415947,9.79231295,187.83,187.8,0.2]
[1730989416459,9.79231295,187.83,187.81,0.1]
[1730989416657,9.79231295,187.83,187.81,0.2]
[1730989416849,9.79231295,187.84,187.81,0.2]
[1730989417455,9.79231295,187.86,187.83,0.2]
[1730989420137,9.79231295,187.86,187.83,0.1]
[1730989420343,9.79231295,187.86,187.83,0.2]
[1730989421242,15.2753,187.88,187.83,0.2]
[1730989421243,9.79231295,187.85,187.83,0.2]
[1730989422158,9.79231295,187.85,187.83,0.1]
[1730989422463,9.79231295,187.85,187.83,0.2]
[1730989422838,9.79231295,187.85,187.83,0.1]
[1730989423044,15.2753,187.88,187.83,0.2]
[1730989423350,6.21740112,187.96,187.86,0.2]
[1730989423543,9.79231295,187.9,187.86,0.2]
[1730989424959,9.79231295,187.9,187.86,0.1]
[1730989425163,9.79231295,187.9,187.86,0.2]
[1730989425545,22.8343,187.93,187.9,0.1]
[1730989425741,9.79231295,187.92,187.9,0.1]
[1730989426060,32.62661295,187.93,187.9,0.2]
[1730989426567,16.5014,187.93,187.91,0.1]
[1730989426854,9.79231295,187.94,187.91,0.2]
[1730989427061,9.79231295,187.93,187.92,0.1]
[1730989427280,9.79231295,187.94,187.92,0.2]
[1730989427439,9.79231295,187.94,187.92,0.1]
[1730989427858,9.79231295,187.93,187.92,0.1]
[1730989428060,9.79231295,187.93,187.9,0.1]
[1730989428243,9.79231295,187.91,187.87,0.2]
[1730989428441,9.79231295,187.9,187.86,0.2]
[1730989428743,9.79231295,187.88,187.86,0.2]
[1730989429450,9.79231295,187.87,187.86,0.2]
[1730989429651,9.79231295,187.88,187.86,0.2]
[1730989430247,9.79231295,187.87,187.86,0.2]
[1730989432045,9.79231295,187.88,187.87,0.1]
[1730989432966,9.79231295,187.89,187.87,0.1]
[1730989433159,9.79231295,187.88,187.87,0.1]
[1730989433570,9.79231295,187.88,187.86,0.2]
[1730989435264,9.79231295,187.88,187.87,0.1]
[1730989435968,9.79231295,187.88,187.86,0.2]
[1730989436156,9.79231295,187.88,187.87,0.1]
[1730989436351,9.79231295,187.89,187.87,0.1]
[1730989436554,9.79231295,187.91,187.88,0.1]
[1730989437466,5.3203,187.96,187.88,0.1]
[1730989437467,9.79231295,187.9,187.88,0.1]
[1730989437668,9.79231295,187.9,187.87,0.1]
[1730989437867,6.065,187.97,187.88,0.2]
[1730989438073,9.79231295,187.91,187.88,0.2]
[1730989438576,9.79231295,187.91,187.88,0.1]
[1730989439444,9.79231295,187.9,187.88,0.1]
[1730989440065,9.79231295,187.89,187.88,0.1]
[1730989440271,9.79231295,187.89,187.87,0.2]
[1730989440448,9.79231295,187.9,187.87,0.2]
[1730989440942,9.79231295,187.9,187.87,0.1]
[1730989441148,9.79231295,187.89,187.87,0.1]
[1730989441368,9.79231295,187.89,187.86,0.2]
[1730989442073,9.79231295,187.87,187.86,0.2]
[1730989442580,9.79231295,187.88,187.86,0.2]
[1730989442945,9.79231295,187.89,187.86,0.2]
[1730989444165,9.79231295,187.88,187.86,0.2]
[1730989444755,9.79231295,187.89,187.86,0.2]
[1730989445263,9.79231295,187.88,187.86,0.2]
[1730989445962,9.79231295,187.89,187.86,0.1]
[1730989446163,9.79231295,187.89,187.86,0.2]
[1730989446474,6.065,187.97,187.84,0.2]
[1730989446475,9.79231295,187.88,187.84,0.2]
[1730989446671,9.79231295,187.87,187.85,0.1]
[1730989447977,9.79231295,187.87,187.86,0.1]
[1730989448493,9.79231295,187.87,187.84,0.1]
[1730989448774,9.79231295,187.86,187.84,0.1]
[1730989449562,9.79231295,187.85,187.82,0.1]
[1730989450859,9.79231295,187.85,187.8,0.2]
[1730989451081,9.79231295,187.84,187.8,0.2]
[1730989451278,9.79231295,187.83,187.8,0.1]
[1730989451781,9.79231295,187.83,187.81,0.1]
[1730989452075,9.79231295,187.83,187.79,0.2]
[1730989452259,9.79231295,187.83,187.8,0.1]
[1730989452461,9.79231295,187.87,187.83,0.1]
[1730989452781,9.79231295,187.86,187.83,0.2]
[1730989453082,9.79231295,187.86,187.83,0.1]
[1730989453867,9.79231295,187.84,187.82,0.2]
[1730989454081,9.79231295,187.85,187.83,0.2]
[1730989454282,9.79231295,187.85,187.83,0.1]
[1730989454479,9.79231295,187.85,187.81,0.1]
[1730989454780,9.79231295,187.84,187.81,0.1]
[1730989455169,9.79231295,187.85,187.83,0.1]
[1730989455367,9.79231295,187.86,187.83,0.1]
[1730989457293,9.79231295,187.85,187.83,0.1]
[1730989457864,9.79231295,187.86,187.83,0.1]
[1730989458271,9.79231295,187.85,187.83,0.1]
[1730989459889,9.79231295,187.85,187.82,0.1]
[1730989460089,9.79231295,187.84,187.81,0.2]
[1730989460586,9.79231295,187.82,187.8,0.1]
[1730989461984,9.79231295,187.82,187.79,0.2]
[1730989462385,9.79231295,187.82,187.79,0.1]
[1730989462894,9.79231295,187.82,187.79,0.2]
[1730989463387,9.79231295,187.81,187.78,0.1]
[1730989463594,9.79231295,187.8,187.78,0.1]
[1730989464477,9.79231295,187.79,187.76,0.1]
[1730989464681,9.79231295,187.79,187.76,0.2]
[1730989464883,9.79231295,187.78,187.75,0.1]
[1730989465193,9.79231295,187.76,187.73,0.1]
[1730989465493,9.79231295,187.76,187.74,0.1]
[1730989465690,9.79231295,187.76,187.73,0.1]
[1730989465891,9.79231295,187.76,187.72,0.2]
[1730989466191,9.79231295,187.75,187.73,0.1]
[1730989467104,9.79231295,187.74,187.7,0.2]
[1730989467474,9.79231295,187.74,187.71,0.1]
[1730989467967,9.79231295,187.73,187.71,0.1]
[1730989468174,9.79231295,187.74,187.71,0.1]
[1730989468393,9.79231295,187.75,187.71,0.2]
[1730989468593,9.79231295,187.74,187.71,0.2]
[1730989468899,9.79231295,187.74,187.71,0.1]
[1730989469597,9.79231295,187.74,187.71,0.2]
[1730989469785,9.79231295,187.72,187.7,0.2]
[1730989469991,9.79231295,187.72,187.7,0.1]
[1730989470182,9.79231295,187.72,187.7,0.2]
[1730989470373,9.79231295,187.73,187.7,0.2]
[1730989471282,9.79231295,187.72,187.69,0.1]
[1730989472110,9.79231295,187.72,187.69,0.2]
[1730989472400,9.79231295,187.72,187.7,0.1]
[1730989472609,9.79231295,187.74,187.71,0.1]
[1730989473110,9.79231295,187.76,187.73,0.1]
[1730989474396,9.79231295,187.75,187.73,0.1]
[1730989474997,9.79231295,187.74,187.73,0.1]
[1730989475303,9.79231295,187.74,187.72,0.1]
[1730989477499,9.79231295,187.75,187.72,0.1]
[1730989478394,6.1921,187.78,187.73,0.1]
[1730989478705,6.1921,187.78,187.74,0.1]
[1730989478913,9.79231295,187.77,187.75,0.1]
[1730989479208,9.79231295,187.77,187.74,0.2]
[1730989479409,9.79231295,187.77,187.75,0.1]
[1730989479702,9.79231295,187.77,187.74,0.2]
[1730989479904,9.79231295,187.77,187.75,0.1]
[1730989480105,9.79231295,187.77,187.74,0.2]
[1730989480401,9.79231295,187.77,187.75,0.1]
[1730989480607,9.79231295,187.77,187.74,0.2]
[1730989481889,9.79231295,187.77,187.75,0.1]
[1730989482405,9.79231295,187.78,187.75,0.1]
[1730989483417,9.79231295,187.77,187.74,0.2]
[1730989483588,9.79231295,187.77,187.75,0.1]
[1730989484708,9.79231295,187.77,187.74,0.2]
[1730989484912,9.79231295,187.76,187.74,0.2]
[1730989485889,9.79231295,187.76,187.75,0.1]
[1730989486088,9.79231295,187.76,187.74,0.2]
[1730989486905,9.79231295,187.77,187.75,0.1]
[1730989487393,9.79231295,187.76,187.75,0.1]
[1730989487589,9.79231295,187.76,187.74,0.2]
[1730989488002,9.79231295,187.76,187.75,0.1]
[1730989489506,9.79231295,187.76,187.74,0.2]
[1730989490420,9.79231295,187.77,187.74,0.2]
[1730989491099,9.79231295,187.77,187.75,0.1]
[1730989492298,9.79231295,187.76,187.74,0.2]
[1730989493418,9.79231295,187.76,187.75,0.1]
[1730989494907,9.79231295,187.77,187.75,0.1]
[1730989495305,9.79231295,187.76,187.75,0.1]
[1730989495515,9.79231295,187.76,187.74,0.2]
[1730989496025,9.79231295,187.76,187.75,0.1]
[1730989496320,9.79231295,187.76,187.74,0.2]
[1730989496527,9.79231295,187.76,187.75,0.1]
[1730989496707,9.79231295,187.77,187.75,0.1]
[1730989496913,9.79231295,187.76,187.75,0.1]
[1730989498000,9.79231295,187.77,187.75,0.1]
[1730989498512,9.79231295,187.77,187.76,0.1]
[1730989501323,9.79231295,187.77,187.74,0.2]
[1730989501525,9.79231295,187.76,187.74,0.2]
[1730989502509,9.79231295,187.75,187.74,0.2]
[1730989502697,9.79231295,187.76,187.74,0.2]
[1730989502910,9.79231295,187.75,187.74,0.2]
[1730989503307,9.79231295,187.76,187.74,0.2]
[1730989503507,9.79231295,187.76,187.75,0.1]
[1730989504225,9.79231295,187.77,187.75,0.1]
[1730989504625,9.79231295,187.77,187.74,0.2]
[1730989504819,9.79231295,187.77,187.76,0.1]
[1730989505209,9.79231295,187.77,187.74,0.2]
[1730989505412,9.79231295,187.76,187.75,0.1]
[1730989506804,9.79231295,187.76,187.74,0.2]
[1730989506995,9.79231295,187.76,187.75,0.1]
[1730989507637,15.0761,187.8,187.77,0.1]
[1730989507917,9.79231295,187.81,187.79,0.1]
[1730989508122,9.79231295,187.81,187.8,0.1]
[1730989508332,15.32701638,187.84,187.82,0.1]
[1730989508526,9.79231295,187.84,187.82,0.1]
[1730989509104,9.79231295,187.83,187.82,0.1]
[1730989510609,16.272,187.94,187.87,0.2]
[1730989510921,9.79231295,187.91,187.88,0.1]
[1730989511121,9.79231295,187.91,187.89,0.1]
[1730989511636,9.79231295,187.92,187.89,0.2]
[1730989511942,9.79231295,187.91,187.89,0.1]
[1730989512120,9.79231295,187.91,187.89,0.2]
[1730989512329,9.79231295,187.91,187.89,0.1]
[1730989512636,9.79231295,187.91,187.89,0.2]
[1730989513239,9.79231295,187.91,187.88,0.1]
[1730989513446,9.79231295,187.89,187.87,0.1]
[1730989513609,9.79231295,187.88,187.86,0.1]
[1730989513811,9.79231295,187.87,187.85,0.2]
[1730989514313,9.79231295,187.88,187.86,0.1]
[1730989514728,9.79231295,187.88,187.87,0.1]
[1730989514940,9.79231295,187.88,187.86,0.1]
[1730989515332,5.3211,187.93,187.87,0.1]
[1730989515540,9.79231295,187.89,187.87,0.1]
[1730989516126,9.79231295,187.89,187.86,0.2]
[1730989516328,9.79231295,187.88,187.86,0.2]
[1730989516544,9.79231295,187.89,187.88,0.1]
[1730989516741,9.79231295,187.89,187.87,0.1]
[1730989518633,9.79231295,187.9,187.87,0.1]
[1730989519445,9.79231295,187.9,187.87,0.2]
[1730989521016,16.272,187.94,187.9,0.1]
[1730989521227,9.79231295,187.92,187.9,0.1]
[1730989521929,9.79231295,187.92,187.91,0.1]
[1730989523349,9.79231295,187.92,187.89,0.2]
[1730989523545,16.272,187.94,187.91,0.1]
[1730989524050,16.272,187.94,187.92,0.1]
[1730989524634,9.79231295,187.93,187.92,0.1]
[1730989525945,9.79231295,187.93,187.91,0.1]
[1730989526139,9.79231295,187.92,187.89,0.1]
[1730989526336,9.79231295,187.9,187.89,0.1]
[1730989526532,9.79231295,187.9,187.89,0.2]
[1730989526858,9.79231295,187.91,187.9,0.1]
[1730989527156,9.79231295,187.91,187.89,0.1]
[1730989527530,9.79231295,187.91,187.9,0.1]
[1730989531846,9.79231295,187.91,187.89,0.1]
[1730989532036,9.79231295,187.91,187.9,0.1]
[1730989533351,9.79231295,187.91,187.89,0.1]
[1730989533543,9.79231295,187.9,187.89,0.1]
[1730989534050,9.79231295,187.9,187.81,180.6]
[1730989534051,9.79231295,187.9,187.87,0.1]
[1730989534243,9.79231295,187.88,187.87,0.2]
[1730989534445,9.79231295,187.88,187.86,0.2]
[1730989534751,21.5928,187.94,187.88,0.1]
[1730989535232,21.5928,187.94,187.87,0.1]
[1730989535554,9.79231295,187.88,187.87,0.2]
[1730989536231,9.79231295,187.88,187.87,0.1]
[1730989536833,9.79231295,187.88,187.85,0.2]
[1730989537040,9.79231295,187.86,187.83,0.1]
[1730989537356,9.79231295,187.84,187.82,0.2]
[1730989537745,9.79231295,187.84,187.82,0.1]
[1730989538052,9.79231295,187.83,187.81,0.1]
[1730989538231,9.79231295,187.83,187.81,0.2]
[1730989538660,9.79231295,187.83,187.82,0.1]
[1730989539666,9.79231295,187.84,187.82,0.2]
[1730989539958,5.3219,187.91,187.85,0.1]
[1730989540165,9.79231295,187.87,187.85,0.1]
[1730989540467,9.79231295,187.87,187.85,0.2]
[1730989541154,9.79231295,187.86,187.85,0.1]
[1730989542871,9.79231295,187.87,187.85,0.2]
[1730989543038,5.3212,187.93,187.87,0.1]
[1730989543379,9.79231295,187.88,187.86,0.2]
[1730989543565,9.79231295,187.88,187.87,0.1]
[1730989543744,9.79231295,187.88,187.87,0.2]
[1730989544270,9.68231295,187.88,187.87,0.2]
[1730989544572,9.68231295,187.88,187.87,0.1]
[1730989544739,9.68231295,187.88,187.87,0.2]
[1730989544940,9.68231295,187.88,187.87,0.1]
[1730989545568,9.68231295,187.88,187.86,0.1]
[1730989545753,44.4907518,187.92,187.87,0.1]
[1730989546352,44.4907518,187.92,187.84,0.1]
[1730989546865,23.776884,187.91,187.82,0.1]
[1730989547182,9.79231295,187.84,187.83,0.1]
[1730989547343,9.79231295,187.84,187.82,0.2]
[1730989547546,9.79231295,187.84,187.83,0.1]
[1730989547741,9.79231295,187.84,187.82,0.2]
[1730989548249,9.79231295,187.84,187.83,0.2]
[1730989548449,9.79231295,187.84,187.83,0.1]
[1730989548752,9.79231295,187.84,187.83,0.2]
[1730989550147,9.79231295,187.84,187.83,0.1]
[1730989550444,9.79231295,187.84,187.82,0.2]
[1730989550861,9.79231295,187.84,187.82,0.1]
[1730989551448,9.79231295,187.83,187.82,0.1]
[1730989551656,9.79231295,187.83,187.81,0.2]
[1730989552052,9.79231295,187.83,187.81,0.1]
[1730989552254,9.79231295,187.82,187.8,0.2]
[1730989552447,9.79231295,187.81,187.8,0.1]
[1730989552970,9.79231295,187.81,187.78,0.2]
[1730989553278,5.3237,187.84,187.78,0.2]
[1730989553279,9.79231295,187.8,187.78,0.2]
[1730989553458,9.79231295,187.79,187.78,0.2]
[1730989555178,9.79231295,187.79,187.78,0.1]
[1730989555378,9.79231295,187.79,187.78,0.2]
[1730989555756,16.4384,187.86,187.79,0.1]
[1730989555757,9.79231295,187.8,187.79,0.1]
[1730989556168,9.79231295,187.8,187.78,0.2]
[1730989556371,9.79231295,187.81,187.78,0.2]
[1730989556982,9.79231295,187.82,187.8,0.1]
[1730989557151,9.79231295,187.83,187.8,0.1]
[1730989557357,9.79231295,187.83,187.82,0.1]
[1730989557773,16.4384,187.86,187.83,0.1]
[1730989557969,26.23071295,187.86,187.85,0.1]
[1730989559258,16.4384,187.86,187.85,0.1]
[1730989559586,22.9797,187.91,187.87,0.1]
[1730989559773,22.9797,187.91,187.84,0.1]
[1730989559979,22.9797,187.91,187.85,0.1]
[1730989560481,22.9797,187.91,187.84,0.1]
[1730989560482,28.3015,187.91,187.83,0.1]
[1730989560670,28.3015,187.91,187.83,0.2]
[1730989560870,28.3015,187.91,187.86,0.1]
[1730989561070,28.3015,187.91,187.85,0.1]
[1730989561386,9.79231295,187.86,187.85,0.1]
[1730989562185,9.79231295,187.86,187.84,0.2]
[1730989562384,9.79231295,187.85,187.84,0.2]
[1730989562862,9.79231295,187.85,187.84,0.1]
[1730989563367,9.79231295,187.85,187.84,0.2]
[1730989563992,9.79231295,187.86,187.85,0.1]
[1730989564878,9.79231295,187.86,187.84,0.2]
[1730989565068,9.79231295,187.85,187.84,0.2]
[1730989565986,9.79231295,187.86,187.84,0.1]
[1730989566283,23.776884,187.9,187.85,0.1]
[1730989566861,29.099084,187.9,187.82,0.1]
[1730989567074,29.099084,187.9,187.84,0.1]
[1730989567363,9.79231295,187.85,187.84,0.1]
[1730989567893,9.79231295,187.85,187.75,160.6]
[1730989567894,9.79231295,187.85,187.81,0.2]
[1730989568192,9.79231295,187.82,187.79,0.1]
[1730989568415,9.79231295,187.82,187.77,0.1]
[1730989568416,9.79231295,187.8,187.77,0.1]
[1730989568689,9.79231295,187.78,187.77,0.2]
[1730989568988,9.79231295,187.78,187.76,0.1]
[1730989569293,9.79231295,187.77,187.76,0.1]
[1730989570703,9.79231295,187.77,187.75,0.2]
[1730989571005,20.9658,187.82,187.76,0.1]
[1730989572093,20.9658,187.82,187.78,0.1]
[1730989572394,9.79231295,187.79,187.78,0.1]
[1730989572892,9.79231295,187.79,187.76,0.2]
[1730989573097,9.79231295,187.78,187.77,0.1]
[1730989573901,9.79231295,187.8,187.78,0.1]
[1730989574214,9.79231295,187.8,187.79,0.1]
[1730989574383,9.79231295,187.8,187.79,0.2]
[1730989575110,9.79231295,187.8,187.79,0.1]
[1730989575410,9.79231295,187.8,187.7,160.6]
[1730989575411,9.79231295,187.8,187.76,0.2]
[1730989575613,9.79231295,187.77,187.76,0.2]
[1730989576112,9.79231295,187.77,187.74,0.2]
[1730989576421,20.9661,187.82,187.74,0.2]
[1730989576422,9.79231295,187.75,187.74,0.2]
[1730989576787,9.79231295,187.76,187.74,0.2]
[1730989577289,29.101384,187.81,187.76,0.1]
[1730989577585,15.6416,187.82,187.78,0.1]
[1730989577791,15.6416,187.82,187.79,0.1]
[1730989578513,9.79231295,187.8,187.78,0.1]
[1730989578809,9.79231295,187.79,187.77,0.2]
[1730989579116,9.79231295,187.78,187.77,0.1]
[1730989579608,9.79231295,187.78,187.77,0.2]
[1730989580411,9.79231295,187.78,187.77,0.1]
[1730989580933,9.79231295,187.78,187.77,0.2]
[1730989581516,9.79231295,187.78,187.77,0.1]
[1730989581825,9.79231295,187.78,187.77,0.2]
[1730989583811,9.79231295,187.78,187.77,0.1]
[1730989584001,9.79231295,187.78,187.77,0.2]